Cogmind - Beta 13 @@@ ROGUE MODE // 2024.07.29 @ 01:06:55 Player: Timo Result: Destroyed by G-34 Mercenary with Small Laser Performance ------------- Evolutions (0) 0 Regions Visited (1) 200 Robots Destroyed (13) 65 Value Destroyed (229) 229 Prototype IDs (2) 40 Alien Tech Used (0) 0 Bonus (0) 0 TOTAL SCORE: 534 Bonus ------- None Cogmind --------- Core Integrity 0/250 Matter 143/300 Energy 45/100 System Corruption 7% Temperature Cool (84) Movement Walking (400) Ox4 Location -10/Materials Parts ------- > --- POWER (1) -------- (None) > --- PROPULSION (2) --- Aluminum Leg Aluminum Leg > --- UTILITY (2) ------ Huge Storage Unit Targeting Computer > --- WEAPON (2) ------- Medium Laser Mining Claw > --- INVENTORY (25) --- Light Ion Engine Small Storage Unit Peak State ------------ > --- POWER ------------ Light Ion Engine > --- PROPULSION ------- Aluminum Leg Aluminum Leg > --- UTILITY ---------- Small Storage Unit > --- WEAPON ----------- Medium Laser Assault Rifle > --- INVENTORY -------- Light Ion Engine Light Treads Light Treads Wheel Compact Wheel Assault Rifle [Rating: 6] Favorites ----------- Power Light Ion Engine Engine Light Ion Engine Propulsion Light Treads Treads Light Treads Leg Aluminum Leg Utility Small Storage Unit Storage Small Storage Unit Processor Targeting Computer Weapon Assault Rifle Energy Gun Medium Laser Ballistic Gun Assault Rifle Launcher Grenade Launcher Slashing Weapon Mining Claw Build | -11 -10 ------- Run | Yrd Mat Slots Evolved . | . . Power . | . . Propulsion . | . . Utility . | . . Weapon . | . . Parts Attached 11 | 3 8 Power 1 | . 1 Engine 1 | . 1 Core . | . . Reactor . | . . Propulsion 4 | 2 2 Treads 2 | 2 . Leg 2 | . 2 Wheel . | . . Hover . | . . Flight . | . . Utility 2 | . 2 Device . | . . Storage 1 | . 1 Processor 1 | . 1 Hackware . | . . Protection . | . . Artifact . | . . Weapon 4 | 1 3 Energy Gun 1 | . 1 Energy Cannon . | . . Ballistic Gun 1 | 1 . Ballistic Cannon . | . . Launcher 1 | . 1 Special Weapon . | . . Impact Weapon . | . . Slashing Weapon 1 | . 1 Piercing Weapon . | . . Special Melee Weapon . | . . Unidentified Prototypes . | . . Parts Lost 7 | . 7 Power 2 | . 2 Propulsion 2 | . 2 Utility . | . . Weapon 3 | . 3 Highest Loss Streak 2 | . 2 To Critical Strikes . | . . Average Slot Usage (%) 76 | . 76 Engine 9 | . 9 Treads 26 | . 26 Leg 1 | . 1 Storage 14 | . 14 Processor 1 | . 1 Energy Gun 2 | . 2 Ballistic Gun 10 | . 10 Launcher 2 | . 2 Slashing Weapon 7 | . 7 Naked Turns . | . . Heaviest Build 13 | 12 13 Greatest Support 40 | 40 40 Greatest Overweight (x) . | . . Average Overweight (x) . | . . Largest Inventory Capacity 25 | 8 25 Average Capacity 8 | 8 8 Most Carried 7 | 7 7 Average Carried 5 | 5 5 Final Capacity 25 | 8 25 Final Carried 4 | 4 2 Class Distribution -------------------- 100% | Mutant Dominant Class ---------------- Mutant | -10/Materials Resources | -11 -10 ----------- Run | Yrd Mat Matter Collected 303 | 200 103 Remotely . | . . Salvage Created 236 | . 236 Parts 16 | . 16 Haulers Intercepted . | . . Recyclers Shooed 2 | . 2 Parts Field Recycled . | . . Retrieved Matter . | . . Parts Self-Destructed . | . . Prevented . | . . Kills | -11 -10 ------- Run | Yrd Mat Combat Hostiles Destroyed 10 | . 10 Melee 1 | . 1 Guns 3 | . 3 AOE 6 | . 6 Classes Destroyed 4 | . 4 Worker 1 | . 1 Recycler 2 | . 2 Swarmer 6 | . 6 Grunt 4 | . 4 Best Kill Streak 4 | . 4 Combat Bots Only 3 | . 3 Max Kills in Single Turn 2 | . 2 Gunslinging . | . . Exploded 2 | . 2 Melee 1 | . 1 Uniques/NPCs Destroyed . | . . Combat | -11 -10 -------- Run | Yrd Mat Hostile Shots Fired 88 | . 88 Missed 28 | . 28 Damage Taken 1227 | . 1227 Core 252 | . 252 Absorbed by Shields . | . . Core Remaining (%) 100 | 100 . Volleys Fired 37 | . 37 Largest 1 | . 1 Hottest 50 | . 50 Shots Fired 38 | . 38 Gun 22 | . 22 Cannon . | . . Launcher 16 | . 16 Special . | . . Kinetic 2 | . 2 Thermal 20 | . 20 Explosive 16 | . 16 Electromagnetic . | . . Robot Hit Streak 9 | . 9 Robot Miss Streak 3 | . 3 Penetration Max . | . . Secondary Targets . | . . Shots Hit Robots 22 | . 22 Core Hits 21 | . 21 Critical Kills . | . . Critical Parts Destroyed . | . . Critical Strikes 1 | . 1 Burn 1 | . 1 Melee Attacks 22 | . 22 Impact . | . . Slashing 22 | . 22 Piercing . | . . Sneak Attacks . | . . Combat Hostiles . | . . Follow-up Attacks . | . . Damage Inflicted 950 | . 950 Guns 186 | . 186 Cannons . | . . Explosions 717 | . 717 Melee 47 | . 47 Ramming . | . . Kinetic . | . . Thermal 186 | . 186 Explosive 717 | . 717 Electromagnetic . | . . Impact . | . . Slashing 47 | . 47 Piercing . | . . Highest Corruption 7 | . 7 Average Corruption 7 | . 7 Corruption Purged . | . . Corruption Blocked . | . . Effects 8 | . 8 Message Errors 1 | . 1 Matter Fused 2 | . 2 Heat Flow Errors 1 | . 1 Energy Discharges 1 | . 1 Data Loss (minor) 1 | . 1 Data Loss (major) 1 | . 1 Misfires 1 | . 1 Overload Shots . | . . Overflow Damage 21 | . 21 Projectiles . | . . Explosions 6 | . 6 Melee 15 | . 15 Knockbacks . | . . Impact . | . . Kinetic . | . . Secondary . | . . Self-Inflicted Damage 156 | . 156 Shots 6 | . 6 Rammed . | . . Targets Rammed . | . . Kicked . | . . Crushed . | . . Highest Temperature 196 | . 196 Average Temperature 46 | . 46 Received Heat Transfer 216 | . 216 Siege Activations . | . . Robots Corrupted . | . . Combat Hostiles . | . . Parts Fried . | . . Impact Corruptions . | . . Robots Melted . | . . Combat Hostiles . | . . Parts Melted 1 | . 1 Heat Transferred 629 | . 629 Parts Sabotaged . | . . Parts Stolen . | . . Parts Stripped . | . . Power Chain Reactions . | . . Alert | -11 -10 ------- Run | Yrd Mat Peak Influence 244 | . 244 Initial . | . . Average 77 | . 79 Maximum Alert Level 1 | . 1 Low Security (%) 94 | 100 94 Level 1 5 | . 5 Level 2 . | . . Level 3 . | . . Level 4 . | . . Level 5 . | . . High Security . | . . Max Security . | . . Squads Dispatched 6 | . 6 Investigation 4 | . 4 Extermination . | . . Reinforcement 2 | . 2 Assault . | . . Garrison . | . . Intercept . | . . Searches Triggered . | . . Construction Impeded . | . . Haulers Reinforced . | . . Active Scanning Responses . | . . Cargo Convoy Interrupts . | . . Stealth | -11 -10 --------- Run | Yrd Mat Distress Signals 2 | . 2 Communications Jammed . | . . Distress Signals . | . . Times Spotted 22 | . 22 Peak Tracking Total 7 | . 7 Tactical Retreats 1 | . 1 Traps | -11 -10 ------- Run | Yrd Mat Traps Triggered 2 | . 2 Indirectly . | . . Trap Hack Attempts . | . . Triggered . | . . Disarmed . | . . Reprogrammed . | . . Reused . | . . Traps Extracted . | . . Installed . | . . Triggered . | . . Machines | -11 -10 ---------- Run | Yrd Mat Machines Disabled 2 | . 2 Max in Single Turn 1 | . 1 Machines Repaired . | . . Machines Dismantled . | . . Machines Sabotaged . | . . Overloaded Fab Kills . | . . Hacking | -11 -10 --------- Run | Yrd Mat Machines Accessed 4 | . 4 Terminals 4 | . 4 Fabricators . | . . Repair Stations . | . . Recycling Units . | . . Scanalyzers . | . . Garrison Access . | . . Total Hacks 16 | . 16 Successful 4 | . 4 Failed 12 | . 12 Catastrophic . | . . Database Lockouts . | . . Manual 8 | . 8 Terminals 16 | . 16 Fabricators . | . . Repair Stations . | . . Recycling Units . | . . Scanalyzers . | . . Garrison Access . | . . Terminal Hacks 4 | . 4 Prototype ID Bank 1 | . 1 Terminal Index 1 | . 1 Transport Status 1 | . 1 Hauler Manifests 1 | . 1 Fabricator Hacks . | . . Repair Station Hacks . | . . Recycling Unit Hacks . | . . Scanalyzer . | . . Garrison Access Hacks . | . . Unauthorized Hacks . | . . Terminals . | . . Fabricators . | . . Repair Stations . | . . Recycling Units . | . . Scanalyzers . | . . Garrison Access . | . . Data Cores Recovered . | . . Used . | . . Hacking Detections 4 | . 4 Full Trace Events 2 | . 2 Feedback Events . | . . Feedback Blocked . | . . Robot Schematics Acquired . | . . Robots Built . | . . Authchips . | . . Time . | . . Total Robot Build Rating . | . . Part Schematics Acquired . | . . Parts Built . | . . Authchips . | . . Time . | . . Total Part Build Rating . | . . Parts Repaired . | . . Time . | . . Parts Recycled . | . . Recycled Matter . | . . Retrieved Matter . | . . Retrieved Components . | . . Parts Scanalyzed . | . . Part Schematics Acquired . | . . Parts Damaged . | . . Bothacking | -11 -10 ------------ Run | Yrd Mat Used RIF Installer . | . . Robots Hacked . | . . Non-combat . | . . Combat . | . . Robot Hacks Applied . | . . Relay Couplers Released . | . . Fabnet Peak Effective % . | . . Robots Rewired . | . . Allies Hacked . | . . Hacks Repelled . | . . Allies | -11 -10 -------- Run | Yrd Mat Total Allies . | . . Largest Group . | . . Highest-Rated Group . | . . Highest-Rated Ally . | . . Total Orders . | . . Ally Attacks . | . . Total Damage . | . . Kills . | . . Allies Corrupted . | . . Allies Melted . | . . Intel | -11 -10 ------- Run | Yrd Mat Robot Analysis Total . | . . Derelict Logs Recovered . | . . Drone Launches . | . . Drone Recoveries . | . . Exploration | -11 -10 ------------- Run | Yrd Mat Turns Passed 621 | 17 604 Spaces Moved 278 | 6 272 Core . | . . Treads 274 | 2 272 Legs 4 | 4 . Wheels . | . . Hover . | . . Flight . | . . Fastest Speed 120 | 120 160 Average Speed 159 | 133 160 Slowest Speed 160 | 160 160 Overloaded Moves . | . . Propulsion Burnouts . | . . Robots Hopped . | . . Cave-ins Triggered 2 | . 2 Exploration Rate (%) 25 | 2 48 Regions Visited 1 Branch Regions . Pre-discovered Areas . | . . Known Exits Taken . | . . Unknown Exits Taken 1 | 1 . Scrap Searched . | . . Spaces Dug 14 | . 14 Terrain Destroyed 108 | . 108 Melee 14 | . 14 Projectile . | . . AOE 94 | . 94 Terrain Rammed . | . . Walls Destroyed . | . . Machines Disabled . | . . Actions | -11 -10 --------- Run | Yrd Mat Total 377 | 18 359 Wait 21 | 5 16 Move 276 | 5 271 Hop . | . . Pick Up 4 | . 4 Fast Attach 1 | . 1 Attach 9 | 3 6 Detach 3 | 3 . Swap 1 | . 1 Drop 2 | 2 . Fire 37 | . 37 Melee 22 | . 22 Ram . | . . Kick . | . . Crush . | . . Escape Stasis 1 | . 1 Rewire . | . . Trap . | . . Miscellaneous . | . . Route ------- -11/Scrapyard -10/Materials (discovered 2 exits: [*Mat x2]) History --------- Turn | Location | Event 1 | -11/Scrapyard | Discovered new exit (range 3) 18 | -11/Scrapyard | Entered Materials 220 | -10/Materials | Discovered new exit (range 5) 301 | -10/Materials | Build established: Mutant 327 | -10/Materials | Crushed by falling debris 336 | -10/Materials | Crushed by falling debris 576 | -10/Materials | Discovered new exit (range 15) 585 | -10/Materials | Core integrity fell below 50% 597 | -10/Materials | Core integrity fell below 20% 622 | -10/Materials | Destroyed by G-34 Mercenary with Small Laser Last Messages --------------- 00560_ R-06 Scavenger collects Heat Sink. 00564_ The unstable cave ceiling collapses. 00566_ U-05 Engineer lays Concrete. 00567_ U-05 Engineer builds a Wall. 00570_ R-06 Scavenger collects Sml. Laser. 00572_ U-05 Engineer lays Concrete. 00576_ EXIT=FOUND 00576_ Triggered Alarm Trap. 00576_ An alarm sounds. 00576_ ALERT: Alarm triggered, dispatching investigation squad. 00583_ Destroyed Flight Unit. 00586_ System corrupted: Matter fused (-10). 00586_ U-05 Engineer lays Concrete. 00587_ The unstable cave ceiling collapses. 00587_ Destroyed Flight Unit. 00587_ S-10 Pest destroyed. 00588_ Lgt. Treads destroyed. 00595_ S-10 Pest destroyed. 00619_ System corrupted: Component data lost. Map ----- +----------------------------------------------------+ | | | ?????????????????????????????????????????????????? | | ?????????????????????????????????????????????????? | | ?????????????????????????????????????????????????? | | ?????????????????????????????????????????????????? | | ?????????????????????????????????????????????????? | | ?????????????????????????????????????????????????? | | ?????????????????????????????????????????????????? | | ????????????????????????? < ?????????????????????? | | ????????????????????????? ?????????????????????? | | ????????????????????????? #????????????????????? | | ????????????????????????# #????????????????????? | | ????????????????????????# #????????????????????? | | ????????????????????????# #????????????????????? | | ????????????????????????# g #????????????????????? | | ????????????????????????#g #????????????????????? | | ????????????????????????# #????????????????????? | | ????????????????????????# #????????????????????? | | ????????????????????????# #######?##???????????? | | ????????????????????????# ## ?? #?????????? | | ????????????????????????# ## ?? #?????????? | | ????????????????????????# =## """ #?????????? | | ????????????????????????# [%## """"" #?????????# | | ????????????????????????# =## """"" #???????### | | ????????????????????????# ## """"" #???????* | | ????????????????????????#@ a## """ #???????? | | ????????????????????????#% ## #???????? | | ???????????????????????##* %# ####????? | | ????????????????######## # ###???? | | ????????????? # # # ##??? | | ???????????? u # ##### | | ????????????? o t [ | | ?????????????#/######### # ## #### # | | ???????????????????????############ #% " | | ???????????????????????????# ####### "T / | | ???????????????????????????# "" ! | | ???????????????????????????# [ [ | | ???????????????????????????# * | | ???????????????????????????# # #+### ###"T"### | | ???????????????????????????# ##?###### | | ???????????????????????????## ## #??????# | | ???????????????????????????## #"" ! ???# | | ???????????????????###?????## % #""" ??# | | ???########???????## #####?## ##""" ### ###?# | | ???# "#??????## # #### ## #?? #???# | | ???# """ ##??????# # #########???#???## | | ???# """ #?######## # #???????????###### | | ???# """ ### # #?????????#?# """ | | ???# + ! # #?????????# # """ | | ???# """ ### = + ########### # """ | +----------------------------------------------------+ Best States ------------- Heat Dissipation 25 Energy Generation 10 Energy Capacity 125 Matter Stores 280 Matter Capacity 300 Sight Range 16 Terrain Scan Density 10 Evasion (%) 40 Targeting Accuracy 5 Recoil Reduction 2 Item Schematics ----------------- None Robot Schematics ------------------ None Fabricated ------------ Nothing Alien Tech Used ----------------- None Achievements -------------- None Challenges ------------ None Game ------ Seed BattleGravitonPick Manual? 0 Play Time 00:07:54 Cumulative 73.4 hours Start 2024.07.29 @ 00:59:44 End 2024.07.29 @ 01:06:55 Sessions 1 Manual Loads 0 Difficulty Rogue Special Mode None Game No. 64 Rogue 64 Adventurer 0 Explorer 0 Win Type - Total 0 Types 0/0/0/0/0/0/0/0/0 Lore% 35 Gallery% 46 Achievement% 33 Wizard Run 0 Options --------- Layout 1 ASCII 0 Keyboard 1 Movement Numpad Keybinds 0 Fullscreen 2 Font 24/Smallcaps Map View 50x35 Zoom Use 0% Tactical HUD 1 Map Filters NONE Filters NONE Steam 1 RUN: 2b3c373f-90f9-4c4c-a8c9-0bd1dc468643